fUST/lending_fUST_20240622
["ID","MTS","AMOUNT","RATE_DAILY","PERIOD"]
[330098816,1718991034999,-276.455137,0.0002495,7]
[330098818,1718991035009,-276.455137,0.0002495,7]
[330098820,1718991035019,-3422.66036898,0.0002499,2]
[330098822,1718991035029,-9761.12504554,0.00025,30]
[330098824,1718991035039,-154.83742071,0.00025,2]
[330098826,1718991035049,-154.83742071,0.00025,2]
[330098828,1718991035059,-457.6583212,0.00025,2]
[330098830,1718991035069,-1000.0,0.00025,25]
[330098832,1718991035078,-45395.83729952,0.00025,2]
[330098837,1718991035119,-500.0,0.00019178,2]
[330098840,1718991035129,-2387.5995225,0.00025,2]
[330098842,1718991035139,-276.455137,0.00025,7]
[330098844,1718991035149,-276.455137,0.00025,7]
[330098846,1718991035159,-151.0,0.00025,7]
[330098848,1718991035169,-3490.72511553,0.00025,31]
[330099267,1718991039766,-469.057992,0.00014145,2]
[330099400,1718991041243,-734.0021031,0.00014145,2]
[330099401,1718991041253,-783.29220222,0.00014147,2]
[330099602,1718991044288,-446.9959193,0.0001414,2]
[330099604,1718991044300,-2120.74870981,0.0001414,2]
[330099606,1718991044309,-3987.021594,0.00014147,2]
[330101925,1718991070743,-2200.11630978,0.00014147,2]
[330101926,1718991070771,-154.83742071,0.0001474,2]
[330101930,1718991070798,-154.83742071,0.00014902,2]
[330102017,1718991071675,723.48959224,0.00014645,2]
[330102249,1718991074233,6970.430106,0.00014145,2]
[330103157,1718991083481,154.83742071,0.00014645,2]
[330103974,1718991139170,190.50091096,0.00014036,2]
[330103975,1718991158823,926.13795218,0.00014975,2]
[330103977,1718991325630,195.39624549,0.00015,2]
[330103981,1718991372014,1444.11597223,0.00015,2]
[330103990,1718991390867,286.98817067,0.00015,2]
[330104007,1718991442663,14100.39526824,0.0001,2]
[330104013,1718991483382,286.98817067,0.00015,2]
[330104022,1718991521719,231.8799177,0.00014436,2]
[330104023,1718991533897,286.98817067,0.00015,2]
[330104033,1718991588121,10558.24410271,0.00015,2]
[330104045,1718991646398,170.89490539,0.00015,2]
[330104046,1718991666834,2061.5845696,0.00014351,2]
[330104047,1718991714476,402.44339184,0.00015,2]
[330104048,1718991725360,1486.780215,0.00015,2]
[330104054,1718991757385,24900.0,0.0001431,2]
[330104055,1718991779119,14498.41459538,0.00015,2]
[330104056,1718991923103,9598.83657696,0.00015,2]
[330104065,1718992005604,3124.43019182,0.00015,4]
[330104095,1718992232022,-208.69640954,0.00015009,2]
[330104096,1718992232032,-547.13021602,0.00015044,2]
[330104097,1718992232042,-292.84396983,0.00015075,2]
[330104098,1718992232052,-2646.43428135,0.00015075,2]
[330104099,1718992232062,-2575.35870124,0.00015116,2]
[330104100,1718992232074,-7982.88540147,0.00015116,2]
[330104101,1718992232084,-10558.24410271,0.00015116,2]
[330104102,1718992232093,-2039.93581219,0.00015594,2]
[330104103,1718992232103,-300.0,0.00015595,2]
[330104104,1718992232112,-1102.45850324,0.00015595,2]
[330104105,1718992232122,-154.83742071,0.00015597,2]
[330104106,1718992232132,-300.0,0.00015598,2]
[330104107,1718992232141,-490.07682753,0.000156,2]
[330104108,1718992232150,-208.75351441,0.00016987,2]
[330104109,1718992232160,-530.87340588,0.00016993,2]
[330104110,1718992232169,-154.83742071,0.00016993,2]
[330104111,1718992232178,-192.0986194,0.00016994,2]
[330104112,1718992232187,-300.0,0.00017061,2]
[330104113,1718992232197,-565.60606837,0.00017082,2]
[330104114,1718992232206,-179.48462699,0.00017082,2]
[330104115,1718992232216,-317.94108609,0.00017082,2]
[330104116,1718992232225,-154.83742071,0.00017082,2]
[330104117,1718992232234,-154.83742071,0.00017082,2]
[330104118,1718992232244,-932.60140374,0.00017083,2]
[330104119,1718992232253,-626.79430955,0.00017083,2]
[330104120,1718992232263,-2114.63043161,0.00017083,2]
[330104121,1718992232272,-1147.61848863,0.00017083,2]
[330104122,1718992232281,-524.12454278,0.00017083,2]
[330104612,1718992238199,-1135.36480139,0.00016894,2]
[330104614,1718992238209,-159.29148896,0.00017082,2]
[330104616,1718992238218,-154.83742071,0.00017082,2]
[330104618,1718992238228,-723.48959224,0.00017083,2]
[330104620,1718992238237,-4522.94128322,0.00017083,2]
[330104622,1718992238250,-1755.94292763,0.00017083,2]
[330104624,1718992238261,-167.42135237,0.00017083,2]
[330104626,1718992238270,-292.88901452,0.00017083,2]
[330104628,1718992238279,-189.0849716,0.00017084,2]
[330104630,1718992238289,-158.12696245,0.00017084,2]
[330104632,1718992238298,-154.83742071,0.00017084,2]
[330104634,1718992238307,-39.04177939,0.00017084,2]
[330104637,1718992238319,-118.08879127,0.00017084,2]
[330104639,1718992238328,-154.83742071,0.00017084,2]
[330104642,1718992238350,-154.83742071,0.00017084,2]
[330104644,1718992238359,-154.83742071,0.00017084,2]
[330104646,1718992238369,-154.83742071,0.00017084,2]
[330104648,1718992238380,-239.44440466,0.00017085,2]
[330104650,1718992238389,-2128.29563568,0.00017085,2]
[330104652,1718992238399,-1473.77623584,0.00017085,2]
[330104655,1718992238412,-547.3820516,0.00017085,2]
[330104657,1718992238424,-1004.46452531,0.00017085,2]
[330104832,1718992240306,-6573.21376421,0.00017085,2]
[330104833,1718992240317,-1444.11597223,0.00017085,2]
[330104834,1718992240327,-2567.74462911,0.00017085,2]
[330104835,1718992240338,-990.19657357,0.00017085,2]
[330104836,1718992240348,-516.57466289,0.00017086,2]
[330104837,1718992240358,-204.51982963,0.00017086,2]
[330104838,1718992240368,-401.52259031,0.00017086,2]
[330104839,1718992240379,-197.55277118,0.00017086,2]
[330104840,1718992240389,-687.40904727,0.00017087,2]
[330104841,1718992240400,-402.44339184,0.00017087,2]
[330104842,1718992240410,-2112.63079139,0.00017098,4]
[330104843,1718992240420,-195.39624549,0.00017098,2]
[330104844,1718992240430,-1486.780215,0.00017099,2]
[330104845,1718992240441,-380.08709804,0.00017099,2]
[330104846,1718992240452,-1486.780215,0.00017099,2]
[330104847,1718992240462,-170.0,0.00017155,2]
[330104848,1718992240473,-1326.94748033,0.000189,2]
[330104849,1718992240483,-250.0,0.00019041,2]
[330104850,1718992240493,-500.0,0.00019178,2]
[330104851,1718992240503,-500.0,0.00019178,2]
[330104852,1718992240517,-481.29845244,0.00019178,2]
[330104853,1718992240527,-500.0,0.00019178,2]
[330104854,1718992240538,-316.95249055,0.00019178,2]
[330104855,1718992240548,-500.0,0.00019178,2]
[330104856,1718992240559,-500.0,0.00019178,2]
[330104857,1718992240570,-500.0,0.00019178,2]
[330104858,1718992240579,-500.0,0.00019178,2]
[330104859,1718992240590,-500.0,0.00019178,2]
[330104860,1718992240607,-500.0,0.00019178,2]
[330104861,1718992240633,-500.0,0.00019178,2]
[330104862,1718992240664,-331.54722107,0.00019178,2]
[330104863,1718992240701,-500.0,0.00019178,2]
[330104864,1718992240743,-500.0,0.00019178,2]
[330104865,1718992240780,-500.0,0.00019178,2]
[330104866,1718992240796,-500.0,0.00019178,2]
[330104867,1718992240806,-500.0,0.00019178,2]
[330104868,1718992240816,-500.0,0.00019178,2]
[330104869,1718992240827,-500.0,0.00019178,2]
[330104870,1718992240837,-500.0,0.00019178,2]
[330104871,1718992240848,-500.0,0.00019178,2]
[330104872,1718992240858,-232.56229475,0.00019178,2]
[330104873,1718992240869,-500.0,0.00019178,2]
[330104874,1718992240879,-500.0,0.00019178,2]
[330104875,1718992240890,-500.0,0.00019178,2]
[330104876,1718992240905,-500.0,0.00019178,2]
[330104877,1718992240916,-500.0,0.00019178,2]
[330104878,1718992240926,-500.0,0.00019178,2]
[330104879,1718992240936,-500.0,0.00019178,2]
[330104880,1718992240947,-500.0,0.00019178,2]
[330104881,1718992240957,-500.0,0.00019178,2]
[330104882,1718992240966,-500.0,0.00019178,2]
[330104883,1718992240978,-500.0,0.00019178,2]
[330104884,1718992240988,-500.0,0.00019178,2]
[330104885,1718992240997,-550.0,0.00019178,2]
[330104886,1718992241007,-500.0,0.00019178,2]
[330104887,1718992241017,-500.0,0.00019178,2]
[330104888,1718992241031,-500.0,0.00019178,2]
[330104889,1718992241041,-500.0,0.00019178,2]
[330104890,1718992241051,-500.0,0.00019178,2]
[330104891,1718992241062,-500.0,0.00019178,2]
[330104892,1718992241073,-500.0,0.00019178,2]
[330104893,1718992241082,-500.0,0.00019178,2]
[330104894,1718992241092,-161.18819455,0.00019178,2]
[330104895,1718992241101,-500.0,0.00019178,2]
[330104896,1718992241111,-570.87913,0.00019178,2]
[330104897,1718992241120,-500.0,0.00019178,2]
[330104898,1718992241130,-500.0,0.00019178,2]
[330104899,1718992241140,-500.0,0.00019178,2]
[330104900,1718992241149,-500.0,0.00019178,2]
[330104901,1718992241159,-500.0,0.00019178,2]
[330104902,1718992241168,-184.85730457,0.00019178,2]
[330104903,1718992241178,-166.555705,0.00019178,2]
[330104904,1718992241187,-170.415214,0.00019178,2]
[330104905,1718992241197,-1135.36480133,0.00019736,2]
[330104906,1718992241206,-17435.8090291,0.0002,2]
[330104907,1718992241222,-1251.4726332,0.0002,2]
[330104908,1718992241234,-619.71305479,0.0002,2]
[330104909,1718992241245,-261.546,0.0002,2]
[330104910,1718992241591,-1397.54594073,0.0002,2]
[330104911,1718992241600,-192.40857136,0.0002,2]
[330104912,1718992241610,-9285.0,0.0002,2]
[330104913,1718992241619,-314.62809134,0.0002,2]
[330104914,1718992241629,-181.53915781,0.0002,2]
[330104915,1718992241639,-321.21925512,0.0002,2]
[330104916,1718992241648,-763.38320384,0.0002,2]
[330105113,1718992243218,-932.60140374,0.00017081,2]
[330105115,1718992243228,-842.31627705,0.00017084,2]
[330105117,1718992243238,-1111.47521582,0.0002,2]
[330107253,1718992388225,150.0,0.00015,2]
[330107254,1718992513035,2646.43428135,0.00015,2]
[330107257,1718992590527,1102.45850324,0.00015,2]
[330107258,1718992624096,188.64415302,0.00015,2]
[330107259,1718992654961,239.44440466,0.00015,2]
[330107261,1718992732355,516.57466289,0.00015,2]
[330107263,1718992859092,401.52259031,0.00015,2]
[330107264,1718992874117,401.52259031,0.00015,2]
[330107266,1718993050297,236.22925636,0.00014944,2]
[330107268,1718993156744,2415.60465839,0.00015,2]
[330107269,1718993230408,509.15402318,0.00015,2]
[330107270,1718993243722,527.87878285,0.00015,2]
[330107272,1718993302749,181.78707243,0.00015,2]
[330107278,1718993365615,2646.43428135,0.00015,2]
[330107279,1718993375634,-561.53997681,0.00015002,2]
[330107280,1718993375725,-552.79569453,0.00015002,2]
[330107281,1718993400605,-583.82669024,0.00015002,2]
[330107282,1718993400770,-200.08193397,0.00015002,2]
[330107283,1718993426261,2039.93581219,0.00015,2]
[330107312,1718993432524,-9598.83657696,0.00015002,2]
[330107313,1718993432533,-300.0,0.00015008,2]
[330107314,1718993432543,-300.0,0.00015008,2]
[330107315,1718993432552,-255.5245183,0.00015014,2]
[330107316,1718993432562,-6970.430106,0.00015075,2]
[330107317,1718993432571,-10558.24410271,0.00015114,2]
[330107318,1718993432581,-1818.6426937,0.00015428,2]
[330107319,1718993432590,-2035.82200233,0.0001544,2]
[330107320,1718993432602,-259.26042306,0.0001544,2]
[330107329,1718993432710,-22604.91757461,0.0001544,2]
[330107331,1718993432719,-1145.89691131,0.00016424,2]
[330107332,1718993432728,-154.83742071,0.00016508,2]
[330107333,1718993432737,-420.0,0.00016509,2]
[330107334,1718993432746,-208.69640954,0.00016523,2]
[330107335,1718993432755,-634.41434798,0.00016524,2]
[330107336,1718993432764,-516.57466289,0.00017082,2]
[330107337,1718993432774,-74.07430917,0.00017082,2]
[330107349,1718993438537,-2054.22132651,0.00017082,2]
[330107352,1718993438547,-239.44440466,0.00017084,2]
[330107355,1718993438557,-239.44440466,0.00017084,2]
[330107358,1718993438567,-1172.54513294,0.00017084,2]
[330107360,1718993438577,-205.24862702,0.00017297,2]
[330107363,1718993438586,-159.29148896,0.00017364,2]
[330107365,1718993438596,-634.41434795,0.00017368,2]
[330107368,1718993438606,-402.44339184,0.00018054,2]
[330107371,1718993438616,-687.40904727,0.00018054,2]
[330107374,1718993438625,-401.52259031,0.00018055,2]
[330107376,1718993438636,-1444.11597223,0.00018058,2]
[330107377,1718993438646,-257.69037624,0.00018059,2]
[330107378,1718993438657,-1102.45850324,0.00018059,2]
[330107379,1718993438667,-1869.31101421,0.00018059,2]
[330107380,1718993438677,-1102.45850324,0.00018059,2]
[330107381,1718993438687,-155.0294538,0.00018059,2]
[330107382,1718993438697,-2114.63043161,0.0001806,2]
[330107383,1718993438707,-220.02083619,0.0001806,2]
[330107384,1718993438717,-154.83742071,0.00018159,2]
[330107385,1718993438727,-490.86555997,0.00018159,2]
[330107386,1718993438737,-545.0,0.0001816,2]
[330107387,1718993438746,-2626.72699038,0.00018184,2]
[330107388,1718993438756,-195.39624549,0.00018184,2]
[330107389,1718993438766,-195.39624549,0.00018184,2]
[330107390,1718993438776,-990.19657357,0.0001819,2]
[330107391,1718993438785,-723.48959224,0.00018192,2]
[330107392,1718993438795,-155.35713629,0.00018192,2]
[330107393,1718993438805,-179.30925806,0.00018199,2]
[330107394,1718993438815,-2567.74462911,0.000182,2]
[330107395,1718993438824,-243.75192738,0.00018211,2]
[330107396,1718993438834,-179.48462699,0.00018211,2]
[330107397,1718993438845,-634.41434795,0.00018212,2]
[330107398,1718993438856,-157.13057066,0.00018219,2]
[330107399,1718993438866,-319.81601538,0.00018219,2]
[330107400,1718993438876,-932.60140374,0.00018557,2]
[330107401,1718993438886,-1166.83352408,0.000189,2]
[330107402,1718993438896,-626.79430955,0.00018917,2]
[330107403,1718993438907,-490.07682753,0.00018918,2]
[330107404,1718993438917,-154.83742071,0.00018918,2]
[330107405,1718993438927,-154.83742071,0.00018918,2]
[330107406,1718993438937,-530.87340588,0.0001904,2]
[330107407,1718993438946,-530.87340588,0.0001904,2]
[330107408,1718993438956,-241.3202915,0.00019041,2]
[330107409,1718993438965,-634.41434795,0.00019056,2]
[330107410,1718993438975,-500.0,0.00019178,2]
[330107411,1718993438985,-259.06080234,0.00019178,2]
[330107412,1718993438995,-500.0,0.00019178,2]
[330107413,1718993439005,-500.0,0.00019178,2]
[330107414,1718993439015,-500.0,0.00019178,2]
[330107415,1718993439025,-500.0,0.00019178,2]
[330107416,1718993439035,-500.0,0.00019178,2]
[330107417,1718993439045,-500.0,0.00019178,2]
[330107418,1718993439055,-500.0,0.00019178,2]
[330107419,1718993439065,-500.0,0.00019178,2]
[330107420,1718993439074,-428.38081766,0.00019178,2]
[330107421,1718993439084,-500.0,0.00019178,2]
[330107422,1718993439095,-500.0,0.00019178,2]
[330107423,1718993439105,-500.0,0.00019178,2]
[330107424,1718993439115,-500.0,0.00019178,2]
[330107425,1718993439125,-500.0,0.00019178,2]
[330107426,1718993439134,-1145.89691125,0.00019333,2]
[330107427,1718993439144,-2183.90065907,0.00019751,2]
[330107428,1718993439154,-634.41434795,0.000199,2]
[330107429,1718993439166,-244.66248428,0.00019998,2]
[330107430,1718993439176,-500.0,0.00019998,2]
[330107431,1718993439188,-455.45719137,0.00019998,2]
[330107432,1718993439198,-11113.82811678,0.00019999,2]
[330107433,1718993439209,-50972.55120797,0.0002,2]
[330107434,1718993439219,-6391.01868373,0.0002,2]
[330107435,1718993439229,-4264.96538101,0.0002,2]
[330107436,1718993439239,-10145.6194233,0.0002,2]
[330107437,1718993439249,-153.67039803,0.0002,2]
[330107438,1718993439259,-314.62809134,0.0002,2]
[330107439,1718993439270,-4837.485,0.0002,2]
[330107440,1718993439280,-13543.37369433,0.0002,2]
[330107441,1718993439295,-1007.68957394,0.0002,2]
[330107496,1718993971702,990.19657357,0.00015,2]
[330107497,1718994010485,154.83742071,0.00015,2]
[330107498,1718994032314,1618.66906895,0.00015,2]
[330107500,1718994246350,723.48959224,0.00015,2]
[330107501,1718994266238,317.94108609,0.00014948,2]
[330107502,1718994271811,-3155.0,0.00015001,2]
[330107503,1718994301216,-5592.0,0.00015001,2]
[330107504,1718994318250,11113.82811678,0.00014948,2]
[330107505,1718994333248,11113.82811678,0.00014948,2]
[330107506,1718994375952,-179.48462699,0.00015009,2]
[330107507,1718994375983,-157.13057066,0.00015012,2]
[330107508,1718994376014,-157.13057066,0.00015013,2]
[330107509,1718994376044,-225.0,0.00015113,2]
[330107510,1718994376071,-179.48462699,0.00015114,2]
[330107511,1718994376082,-157.13057066,0.00015114,2]
[330107512,1718994376093,-157.13057066,0.00015114,2]
[330107513,1718994376104,-225.0,0.00015114,2]
[330107514,1718994376123,-2452.50846338,0.00015114,2]
[330107528,1718994534301,10558.24410271,0.00015,2]
[330107532,1718994611537,1499.3615116,0.00014225,2]
[330107544,1718994632652,-1611.31043749,0.00015044,2]
[330107545,1718994632665,-510.30323151,0.00015044,2]
[330107547,1718994632677,-586.23740997,0.00015044,2]
[330108362,1718994640981,-520.28485859,0.00015044,2]
[330108364,1718994640993,-412.31654515,0.00015044,2]
[330108366,1718994641003,-154.83742071,0.00015075,2]
[330108368,1718994641012,-898.61359266,0.00015116,2]
[330108370,1718994641022,-530.87340588,0.00015135,2]
[330108372,1718994641032,-530.87340588,0.00015135,2]
[330108374,1718994641041,-17167.24918035,0.00015302,2]
[330108377,1718994641054,-10251.89679314,0.00015302,2]
[330108512,1718994643901,-961.38685211,0.00015302,2]
[330108514,1718994643913,-1725.07315766,0.00015302,2]
[330108516,1718994643924,-294.2938872,0.00015302,2]
[330108519,1718994643935,-524.7988592,0.00015302,2]
[330108521,1718994643946,-4364.56910704,0.00015302,2]
[330108523,1718994643958,-5073.49072537,0.00015302,2]
[330108525,1718994643967,-2926.19837534,0.00015303,2]
[330110275,1718995291847,2039.93581219,0.00015,2]
[330110285,1718995355360,276.0229771,0.00015,2]
[330110287,1718995380102,280.45295109,0.00015,2]
[330110288,1718995380127,6.53521958,0.00015,2]
[330110290,1718995419332,24900.0,0.00014826,2]
[330110302,1718995810328,9598.83657696,0.00015,2]
[330110470,1718995865179,156.40845241,0.00015,2]
[330110472,1718995904490,2567.74462911,0.00015,2]
[330110474,1718995960432,24900.0,0.00014766,2]
[330110475,1718995997002,155.0,0.000225,30]
[330110476,1718996001845,155.0,0.000225,30]
[330110477,1718996006689,155.0,0.000225,30]
[330110478,1718996011598,155.0,0.000225,30]
[330110479,1718996016466,155.0,0.000225,30]
[330110480,1718996021356,155.0,0.000225,30]
[330110481,1718996025998,155.0,0.000225,30]
[330110482,1718996030506,155.0,0.000225,30]
[330110483,1718996035643,155.0,0.000225,30]
[330110484,1718996040212,155.0,0.000225,30]
[330110485,1718996045050,155.0,0.000225,30]
[330110486,1718996050416,155.0,0.000225,30]
[330110487,1718996054864,248.95535218,0.000225,30]
[330110488,1718996166503,3156.27211121,0.00015,2]
[330110490,1718996199382,7118.63759054,0.00015,2]
[330110491,1718996263864,9677.48237948,0.00015,2]
[330110492,1718996296560,250.0,0.00014465,2]
[330110493,1718996334087,3515.85425947,0.00014944,2]
[330110494,1718996364423,2097.8943503,0.00014465,2]
[330110499,1718996459310,2114.63043161,0.00015,2]
[330110500,1718996459428,2097.8943503,0.00014465,2]
[330110504,1718996504591,24900.0,0.00014693,2]
[330110506,1718996556431,1452.19308048,0.00014693,2]
[330110511,1718996655871,154.82195475,0.00015,2]
[330110514,1718996730876,1334.7946138,0.00015,2]
[330110518,1718996899986,-300.0,0.00014643,2]
[330110519,1718996900019,-230.81194331,0.00014644,2]
[330110520,1718996900279,-530.81194331,0.00014644,2]
[330110521,1718996900315,-259.32436414,0.00014644,2]
[330110523,1718996925222,-557.23090832,0.00014644,2]
[330110524,1718996925280,-557.23090832,0.00014644,2]
[330110525,1718996925338,-557.23090832,0.00014644,2]
[330110526,1718996950462,-395.81229839,0.00014642,2]
[330110527,1718996950526,-590.66476282,0.00014642,2]
[330110528,1718996950585,-590.66476282,0.00014642,2]
[330110529,1718996975458,-622.2075993,0.00014642,2]
[330110530,1718996975506,-622.2075993,0.00014642,2]
[330110531,1718996975572,-509.0790523,0.00014642,2]
[330110532,1718997000223,-657.27748432,0.00014146,2]
[330110533,1718997000284,-657.27748432,0.00014146,2]
[330110534,1718997000341,-149.8365626,0.00014146,2]
[330110607,1718997035077,-975.75,0.00014146,2]
[330110610,1718997035088,-2637.25044214,0.00014146,2]
[330110612,1718997035100,-1670.99319192,0.00014146,2]
[330110614,1718997035112,-1284.5294023,0.00014146,2]
[330110616,1718997035123,-1565.92200936,0.00014146,2]
[330110618,1718997035132,-723.48959224,0.00014645,2]
[330110620,1718997035142,-221.0,0.00014947,2]
[330110622,1718997035151,-300.0,0.00014947,2]
[330110624,1718997035161,-526.64661258,0.00014948,2]
[330110626,1718997035177,-441.04596982,0.00014948,2]
[330110629,1718997035189,-1031.88417756,0.00014948,2]
[330110822,1718997041688,-128.71887572,0.00014948,2]
[330110824,1718997041698,-2128.29563568,0.00014948,2]
[330110825,1718997041708,-472.45851268,0.00015,2]
[330110826,1718997041718,-2438.87692644,0.00015,2]
[330110827,1718997041727,-2567.74462911,0.00015002,2]
[330110828,1718997041737,-179.48462699,0.00015042,2]
[330110829,1718997041746,-530.87340588,0.00015042,2]
[330110830,1718997041755,-521.5832114,0.00015043,2]
[330110831,1718997041765,-156.38459833,0.00015044,2]
[330110832,1718997041775,-1117.28229995,0.00015114,2]
[330110833,1718997041784,-188.315825,0.00015114,2]
[330110834,1718997041793,-2039.93581219,0.00015137,2]
[330110835,1718997041803,-2104.4779877,0.00015138,2]
[330110836,1718997041812,-2039.93581219,0.00015302,2]
[330110837,1718997041822,-2114.63043161,0.00015302,2]
[330110838,1718997041831,-154.82195475,0.00015302,2]
[330110839,1718997041841,-1628.1313824,0.00015335,2]
[330110840,1718997041850,-1427.93945317,0.00015466,2]
[330110841,1718997041859,-154.82195475,0.00015563,2]
[330110842,1718997041868,-544.48503855,0.00015564,2]
[330110843,1718997041878,-317.94108609,0.00015565,2]
[330110844,1718997041887,-157.13057066,0.00015566,2]
[330110845,1718997041897,-490.07682753,0.000156,2]
[330110846,1718997041906,-300.0,0.0001636,2]
[330110847,1718997041915,-402.44339184,0.00016494,2]
[330110848,1718997041926,-239.44440466,0.00016495,2]
[330110849,1718997041936,-207.63725802,0.00016495,2]
[330110850,1718997041945,-154.98450155,0.00016496,2]
[330110851,1718997041954,-524.12454278,0.00016499,2]
[330110852,1718997041964,-154.83742071,0.00016499,2]
[330110853,1718997041973,-523.730401,0.000165,2]
[330110854,1718997041982,-3124.43019182,0.000165,4]
[330110855,1718997041991,-154.82195475,0.000165,2]
[330110856,1718997042001,-711.71840446,0.00016501,4]
[330110940,1718997519127,154.76012181,0.000141,2]
[330110943,1718997733015,179.48462699,9.999e-05,2]
[330110944,1718997745894,701.2837482,0.00013631,2]
[330110945,1718997766872,956.54451769,0.0001212,2]
[330110946,1718997786523,179.48462699,0.0001212,2]
[330110947,1718997804834,155.01549845,0.0001212,2]
[330110949,1718997873233,228.6225034,0.00013699,2]
[330110951,1718997935117,6806.8652066,0.00013699,2]
[330110957,1718997981483,250.0,0.00013533,2]
[330110967,1718998162533,24900.0,0.00013512,2]
[330110968,1718998175073,-596.04284106,0.00014136,2]
[330110969,1718998175176,-487.63400539,0.00014136,2]
[330110970,1718998199909,-617.71637799,0.00014136,2]
[330110971,1718998199962,-413.23720717,0.00014136,2]
[330110972,1718998199993,-183.95823359,0.00014136,4]
[330110999,1718998232638,-2940.47195823,0.00014136,4]
[330111001,1718998232648,-165.63210589,0.00014145,2]
[330111003,1718998232657,-2688.93992884,0.00014147,2]
[330111005,1718998232666,-300.0,0.00014324,2]
[330111007,1718998232676,-3000.0,0.00014325,2]
[330111009,1718998232685,-179.48462699,0.0001454,2]
[330111011,1718998232695,-300.0,0.0001454,2]
[330111013,1718998232704,-2128.29563568,0.0001454,2]
[330111014,1718998232713,-1603.84892002,0.00014541,2]
[330111016,1718998232724,-401.52259031,0.00014622,2]
[330111018,1718998232733,-174.91159133,0.00014623,2]
[330111020,1718998232743,-9598.83657696,0.00014641,2]
[330111022,1718998232753,-239.44440466,0.00014645,2]
[330111024,1718998232762,-1102.63561948,0.000149,2]
[330111026,1718998232772,-1102.45850324,0.00015,2]
[330111028,1718998232781,-207.17379319,0.00015,2]
[330111030,1718998232791,-530.4128377,0.00015002,2]
[330111032,1718998232801,-154.83742071,0.00015009,2]
[330111034,1718998232811,-151.0,0.00015114,2]
[330111036,1718998232821,-326.83367228,0.00015302,2]
[330111038,1718998232831,-723.48959224,0.00015302,2]
[330111040,1718998232840,-151.0,0.00015439,2]
[330111042,1718998232850,-420.0,0.00015757,2]
[330111044,1718998232859,-245.0,0.00015921,2]
[330111046,1718998232868,-932.60140374,0.00016419,2]
[330111048,1718998232880,-154.82195475,0.00016419,2]
[330111050,1718998232889,-2039.93581219,0.0001642,2]
[330111052,1718998232898,-516.57466289,0.0001642,2]
[330111054,1718998232907,-2567.74462911,0.00016421,2]
[330111056,1718998232916,-317.94108609,0.00016421,2]
[330111058,1718998232926,-154.82195475,0.00016422,2]
[330111060,1718998232935,-490.07682753,0.00016423,2]
[330111062,1718998232944,-157.13057066,0.00016423,2]
[330111064,1718998232960,-151.0,0.00016424,2]
[330111065,1718998232969,-420.93901178,0.000165,7]
[330111066,1718998232979,-151.0,0.00016821,2]
[330111067,1718998232987,-626.79430955,0.00016822,2]
[330111068,1718998232998,-154.82195475,0.00016822,2]
[330111069,1718998233008,-1102.63561948,0.00016823,2]
[330111070,1718998233017,-155.29872316,0.00016843,2]
[330111071,1718998233027,-687.40904727,0.00016844,2]
[330111072,1718998233038,-530.87340588,0.00016845,2]
[330111073,1718998233047,-159.29148896,0.00016856,2]
[330111074,1718998233056,-151.0,0.00016857,2]
[330111075,1718998233065,-151.0,0.00017082,2]
[330111076,1718998233074,-208.69640954,0.00017084,2]
[330111077,1718998233083,-565.60606837,0.00017107,2]
[330111078,1718998233092,-309.62844586,0.00017107,2]
[330111079,1718998233101,-1148.18467959,0.00017108,2]
[330111080,1718998233110,-154.82195475,0.00017108,2]
[330111081,1718998233120,-151.0,0.0001711,2]
[330111082,1718998233130,-154.98450155,0.00017121,2]
[330111083,1718998233139,-251.0,0.00017333,2]
[330111084,1718998233149,-167.057992,0.00017698,2]
[330111085,1718998233158,-155.0,0.00017729,2]
[330111086,1718998233167,-1603.84891999,0.0001773,2]
[330111087,1718998233177,-800.92995936,0.00018117,2]